[Event "CCT Chessable Masters Playoffs 2025"]
[Site "Online"]
[Date "2025.02.18"]
[Round "1"]
[White "Praggnanandhaa R"]
[Black "Wei, Yi"]
[Result "0-1"]
[Annotator "TA"]
[ECO "A45"]
[WhiteElo "2741"]
[BlackElo "2755"]
[PlyCount "200"]
[EventDate "2025.02.13"]
[EventType "k.o."]
[EventCountry "NET"]
[SourceTitle "playchess.com"]
[Source "ChessBase"]
[SourceQuality "1"]
[TimeControl "600"]

{[%evp 9,199,0,0,0,0,0,6,-7,14,0,0,0,16,7,1,8,0,5,0,-8,-10,-8,0,0,0,0,4,6,14,16,55,55,68,0,0,0,0,0,0,0,0,0,1,0,9,0,8,0,0,0,0,0,8,8,8,8,8,8,8,8,8,8,8,8,8,8,10,8,8,8,8,8,8,0,0,0,0,-8,8,8,105,0,0,0,0,0,0,0,0,0,0,0,0,0,0,0,0,0,0,0,0,0,0,-359,-359,-359,-359,-359,-352,-352,-352,-345,-337,-337,-337,-315,-287,-254,0,-12847,-236,-29939,-360,-29948,-29952,-29954,-29957,-29956,-29955,-29962,-29962,-29961,-29964,-29963,-29964,-29960,-29966,-29966,-29967,-29968,-29967,-29966,-29966,-29962,-12794,-6003,0,-5193,-4955,-2295,-2295,-29978,-1528,-1499,-877,-29978,-29979,-29976,-29977,-29977,-29978,-29978,-29979,-29984,-29985,-29985,-29986,-29986,-29987,-29987,-29987,-29989,-29990,-29990,-29991,-29992,-29993,-29993,-29994,-29994,-29995,-29995,-29996,-29996,-29996,-29996,-29997,-29997,-29998,-29998,-29999,-29999]} 1. d4 {[%emt 0:00:01]} Nf6 {[%emt 0:00:02]} 2. Bf4 {[%emt 0:00:01]} g6 {[%emt 0:00:05]} 3. Nc3 {[%emt 0:00:01]} d5 {[%emt 0:00:03]} 4. e3 {[%emt 0:00:01]} Bg7 {[%emt 0:00:01]} 5. h4 {[%emt 0:00:01]} h5 {[%emt 0:00:04]} 6. Nf3 {[%emt 0:00:01] A45: Trompowsky Attack.} (6. Nb5 $5 Na6 $8 7. Nc3 $11) 6... O-O {[%emt 0:00:05]} 7. Ne5 {[%emt 0:00:01]} c5 {[%emt 0:00:07]} 8. Qd2 {[%emt 0:00:01] The position is equal.} Nc6 {[%emt 0:00:14]} 9. f3 {[%emt 0:00:04]} cxd4 {[%emt 0:00:15]} 10. exd4 {[%emt 0:00:02]} Bf5 {[%emt 0:00:01]} 11. Bb5 {[%emt 0:00:06]} Nxe5 {[%emt 0:00:27] Successful Defense Black} 12. dxe5 {[%emt 0:00:03]} Nd7 {[%emt 0:00:01]} 13. O-O-O {[%emt 0:00:13]} Nxe5 {[%emt 0:00:05][%cal Od5d4]} 14. Rhe1 {[%emt 0:00:07] White sacrificed a pawn} Nc6 {[%emt 0:00:03]} 15. Bh6 {[%emt 0:00:09]} Rc8 {[%emt 0:00:23]} 16. Bxg7 {[%emt 0:00:20]} (16. Nxd5 Qxd5 17. Qxd5 Bxh6+ 18. Kb1 Nb4 19. Qxb7 Rxc2 $19) 16... Kxg7 {[%emt 0:00:01]} 17. Bxc6 $146 {[%emt 0:01:33]} (17. g4 hxg4 18. Bxc6 bxc6 19. fxg4 Bd7 20. h5 f6 21. Qd3 g5 22. Qg6+ Kh8 23. Qh6+ Kg8 24. Qg6+ Kh8 25. Qh6+ Kg8 {½-½ Akhilbay,I (2185)-Kamilov,D (2012) Cheliabinsk Lozovatsky Memorial-A 2023 (10)}) 17... Rxc6 {[%emt 0:00:21]} 18. g4 {[%emt 0:00:02]} hxg4 {[%emt 0:00:57]} 19. fxg4 {[%emt 0:00:00]} Be6 {[%emt 0:00:03][%cal Od8b6]} 20. h5 {[%emt 0:00:17]} d4 {[%emt 0:00:58]} 21. hxg6 {[%emt 0:01:47] White attacks} ({White should play} 21. Re4 $1 $14) 21... Bxg4 $11 {[%emt 0:00:25]} (21... dxc3 $6 22. Qxd8 cxb2+ (22... Rxd8 23. Rxd8 cxb2+ 24. Kxb2 $16) 23. Kxb2 Rxd8 24. Rxd8 $16) 22. Qxd4+ {[%emt 0:00:36]} Qxd4 {[%emt 0:00:00]} 23. Rxd4 {[%emt 0:00:01]} Rxg6 {[%emt 0:00:53]} 24. Rxe7 {[%emt 0:00:01]} Bf3 {[%emt 0:00:01]} 25. b4 {[%emt 0:00:04]} Re6 {[%emt 0:00:20]} 26. Rc7 {[%emt 0:00:25]} a6 {[%emt 0:00:12]} 27. Rd3 {[%emt 0:00:16]} Bc6 {[%emt 0:00:12]} 28. a4 {[%emt 0:00:02]} Re5 {[%emt 0:00:11]} 29. Kb2 {[%emt 0:00:10]} Rh8 {[%emt 0:00:16]} 30. Rg3+ {[%emt 0:00:49]} Kf6 {[%emt 0:00:01] [#]} 31. b5 $1 {[%emt 0:00:10]} axb5 {[%emt 0:00:01]} 32. axb5 {[%emt 0:00:01]} Bh1 {[%emt 0:00:35]} 33. Rg4 {[%emt 0:00:09]} Rhh5 {[%emt 0:00:08]} 34. Kb3 {[%emt 0:00:14]} Rhg5 {[%emt 0:00:22]} 35. Rh4 {[%emt 0:00:03]} Rh5 {[%emt 0:00:02] Wards off Rxh1} 36. Rd4 {[%emt 0:00:01]} Kg6 {[%emt 0:00:20]} 37. Kb4 {[%emt 0:00:13]} Rhf5 {[%emt 0:00:01]} 38. Rd6+ {[%emt 0:00:12]} Rf6 {[%emt 0:00:02]} 39. Rxf6+ {[%emt 0:00:03]} Kxf6 {[%emt 0:00:02][%mdl 4096] Endgame KRB-KRN} 40. Na4 {[%emt 0:00:00]} Re7 {[%emt 0:00:05]} 41. b6 {[%emt 0:00:05]} Re1 {[%emt 0:00:08]} 42. c4 {[%emt 0:00:08]} Rb1+ {[%emt 0:00:01]} 43. Kc5 {[%emt 0:00:00]} Ke6 {[%emt 0:00:20]} 44. Nc3 {[%emt 0:00:02]} Rc1 {[%emt 0:00:01]} (44... Ra1 $1 $11) 45. Nb5 {[%emt 0:00:03]} (45. Ne2 $16 Rd1 46. Nf4+ Ke5 47. Rxf7) 45... f5 $1 {[%emt 0:00:03][%cal Bf7f5,Bf5f4,Bf4f3,Bf3f2][%mdl 32]} 46. Rc8 {[%emt 0:00:10]} f4 {[%emt 0:00:04]} 47. Nd4+ {[%emt 0:00:00]} Kf7 {[%emt 0:00:07]} 48. Rh8 {[%emt 0:00:14] and Ne2 would now be decisive} Rf1 {[%emt 0:00:01]} 49. Rh4 {[%emt 0:00:05]} f3 {[%emt 0:00:06] Dodges Ne2} 50. Rf4+ {[%emt 0:00:02]} Kg6 {[%emt 0:00:02]} 51. Kd6 {[%emt 0:00:07]} f2 {[%emt 0:00:01]} 52. Kc5 {[%emt 0:00:07]} Kg5 {[%emt 0:00:04]} 53. Ne6+ {[%emt 0:00:01]} Kg6 {[%emt 0:00:00]} 54. Nf8+ {[%emt 0:00:00]} Kg5 {[%emt 0:00:08]} 55. Ne6+ {[%emt 0:00:01]} Kg6 {[%emt 0:00:00]} 56. Rf8 $2 {[%emt 0:00:05][%mdl 8192]} (56. Nd4 $11 {and White stays safe.}) 56... Re1 $19 {[%emt 0:00:03]} 57. Rxf2 {[%emt 0:00:04]} Rxe6 {[%emt 0:00:01] KRB-KR} 58. Kb5 {[%emt 0:00:01]} Bc6+ {[%emt 0:00:01]} 59. Kc5 {[%emt 0:00:00]} Rf6 {[%emt 0:00:02]} 60. Rh2 {[%emt 0:00:02]} Kf7 {[%emt 0:00:01]} 61. Re2 {[%emt 0:00:01]} Re6 {[%emt 0:00:01]} 62. Rh2 {[%emt 0:00:00]} Re5+ {[%emt 0:00:03]} 63. Kd6 {[%emt 0:00:01]} Re6+ $2 {[%emt 0:00:00]} (63... Rf5 $19 {White must now prevent ...Kg6.} 64. Rh7+ Kg6) 64. Kc7 $2 {[%emt 0:00:01][%mdl 8192]} (64. Kc5 $11 Bd7 65. Rb2) 64... Re7+ $2 {[%emt 0:00:01]} (64... Kf6 65. Rh5 Kg6) 65. Kb8 $2 {[%emt 0:00:01]} (65. Kd6 $19 Re6+ 66. Kc7) 65... Re4 $2 {[%emt 0:00:00]} (65... Kf6 {mates} 66. c5 Rg7 67. Re2 Rg5 68. Rh2 Ke6 (68... Rxc5 $2 69. Rh6+ Ke5 70. Rh5+ Kd6 71. Rh6+ Kd5 72. Rh4 $19) 69. Rh7 Kd5 (69... Rxc5 $2 70. Rh4 $19) 70. Ka7 Kxc5 71. Rh2 Bd5 72. Rc2+ Kd6 73. Rc1 Rg3 74. Rf1 Ra3+ 75. Kb8 Kc6 76. Rf6+ Kc5 77. Rg6 Bc6 78. Kc7 Rd3 79. Rg7 Kb5 80. Re7 Ka6 81. Rg7 Rd2 (81... Rc3 $2 82. Kd6 $19) 82. Rf7 Rd7+ 83. Rxd7 Bxd7 84. Kxd7 Kxb6 85. Kd6 Ka5 86. Ke5 b5 87. Ke4 Ka4 88. Ke3 Ka3 89. Ke2 b4 90. Kd2 b3 91. Kc1 Ka2 92. Kd2 b2 93. Ke3 b1=Q (93... b1=R $2 94. Kf4 $19) 94. Kf4 Qf1+ 95. Kg5 Kb2 96. Kg6 Kc3 97. Kg7 Kd4 98. Kg8 Qg2+ 99. Kf8 Qb7 100. Ke8 Ke5 101. Kf8 Kf6 102. Kg8 Qg7#) 66. c5 $2 {[%emt 0:00:01]} (66. Kc7 $19) 66... Ke6 {[%emt 0:00:01]} 67. Rh5 {[%emt 0:00:01]} Re5 {[%emt 0:00:00]} 68. Rh2 {[%emt 0:00:03]} Kd5 {[%emt 0:00:01]} 69. Kc7 {[%emt 0:00:00]} Kxc5 {[%emt 0:00:01]} 70. Rc2+ {[%emt 0:00:00]} Kb5 {[%emt 0:00:00]} 71. Rb2+ {[%emt 0:00:00]} Ka6 {[%emt 0:00:00]} 72. Ra2+ {[%emt 0:00:01] [#]} Ra5 $1 {[%emt 0:00:01]} 73. Rd2 {[%emt 0:00:00]} Ra4 {[%emt 0:00:01]} 74. Rc2 {[%emt 0:00:00]} Kb5 {[%emt 0:00:00]} 75. Rb2+ {[%emt 0:00:01]} Rb4 {[%emt 0:00:01]} 76. Rf2 {[%emt 0:00:00]} Ka5 {[%emt 0:00:00]} (76... Be4 $142 77. Ra2 Rc4+ 78. Kd6 Kxb6 79. Ra8 Kb5 80. Ra2 Kb4 81. Ke7 b5 82. Kf8 Kb3 83. Re2 b4 84. Kg7 Kc3 85. Re3+ Bd3 86. Rg3 b3 87. Rg2 b2 88. Rxb2 Kxb2 89. Kf6 Kc3 90. Kg5 Rc5+ 91. Kf6 Kd4 92. Ke6 Bf5+ 93. Kf6 Ke4 94. Kg7 Ke5 95. Kh6 Kf6 96. Kh5 Rc4 97. Kh6 Rh4#) 77. Ra2+ {[%emt 0:00:01] [#]} Kb5 $2 {[%emt 0:00:01]} ({Black should play} 77... Ra4 $1 $19 {[%cal Ra4a2]} 78. Rc2 Re4 79. Ra2+ Ra4) 78. Re2 $2 {[%emt 0:00:00][%mdl 8192]} (78. Rf2 $11 Ka6 79. Rf1) 78... Rh4 {[%emt 0:00:00]} 79. Re5+ {[%emt 0:00:00]} Ka6 {[%emt 0:00:01] ( -> ...Rd4)} 80. Re7 {[%emt 0:00:01]} Rh6 {[%emt 0:00:01]} (80... Rd4 $142 81. Rg7 Rd7+ 82. Rxd7 Bxd7 83. Kxd7 Kxb6 84. Kd6 Ka5 85. Ke6 Ka4 86. Kf5 b5 87. Ke4 b4 88. Ke3 b3 89. Kd2 Kb4 90. Kd3 Ka3 91. Ke4 b2 92. Kf5 b1=Q+ (92... b1=R $2 93. Kf4 $19) 93. Kg5 Qb5+ 94. Kg6 Kb4 95. Kh6 Qf5 96. Kg7 Qg5+ 97. Kh7 Kc4 98. Kh8 Kd5 99. Kh7 Ke6 100. Kh8 Kf7 101. Kh7 Qh5#) 81. Rf7 {[%emt 0:00:00]} Rh5 {[%emt 0:00:01] ( -> ...Rd5)} 82. Rg7 {[%emt 0:00:01]} Rd5 {[%emt 0:00:00] Black mates.} 83. Re7 {[%emt 0:00:00] [#]} Rd7+ $1 {[%emt 0:00:01][%mdl 512]} 84. Rxd7 {[%emt 0:00:01]} Bxd7 {[%emt 0:00:00]} 85. Kxd7 {[%emt 0:00:00]} Kxb6 {[%emt 0:00:00] KP-K. Black is a pawn up.} 86. Ke6 {[%emt 0:00:00]} Kc5 {[%emt 0:00:00]} 87. Ke5 {[%emt 0:00:00]} b5 {[%emt 0:00:00]} 88. Ke4 {[%emt 0:00:01]} Kc4 {[%emt 0:00:00]} 89. Ke3 {[%emt 0:00:00]} Kc3 {[%emt 0:00:01]} 90. Ke4 {[%emt 0:00:00]} b4 {[%emt 0:00:00]} 91. Kf3 {[%emt 0:00:00]} b3 {[%emt 0:00:00]} 92. Ke2 {[%emt 0:00:01]} b2 {[%emt 0:00:00]} 93. Kf2 {[%emt 0:00:00]} b1=Q {[%emt 0:00:00]} ({Not} 93... b1=B 94. Kg3 $11) 94. Kg3 {[%emt 0:00:00]} Qe4 {[%emt 0:00:00]} 95. Kf2 {[%emt 0:00:01]} Kd4 {[%emt 0:00:00]} 96. Kg3 {[%emt 0:00:00]} Qf5 {[%emt 0:00:00]} 97. Kh2 {[%emt 0:00:01]} Ke3 {[%emt 0:00:01]} 98. Kg2 {[%emt 0:00:00]} Qg6+ {[%emt 0:00:00]} 99. Kf1 {[%emt 0:00:00]} Qg4 {[%emt 0:00:01]} 100. Ke1 {[%emt 0:00:01]} Qg1# {[%emt 0:00:00] Weighted Error Value: White=0.14 (very precise) /Black=0.05 (flawless)   Loses game:     	White=2     	---        Missed win:     	---       	Black=1      Mistake:       	White=4     	Black=2      Inaccurate:     	---       	Black=1      OK:         	White=19    	Black=32     Best:        	White=1     	Black=4      Strong:       	---       	Black=1} 0-1

[Event "CCT Chessable Masters Playoffs 2025"]
[Site "Online"]
[Date "2025.02.18"]
[Round "1"]
[White "Duda, Jan-Krzysztof"]
[Black "Nepomniachtchi, Ian"]
[Result "0-1"]
[Annotator "TA"]
[ECO "D00"]
[WhiteElo "2739"]
[BlackElo "2754"]
[PlyCount "102"]
[EventDate "2025.02.13"]
[EventType "k.o."]
[EventCountry "NET"]
[SourceTitle "playchess.com"]
[Source "ChessBase"]
[SourceQuality "1"]
[TimeControl "600"]

{[%evp 9,102,-10,24,6,17,22,33,36,31,18,43,45,49,13,12,7,20,0,18,-37,7,7,0,0,8,-5,-7,-7,0,0,0,0,-10,-14,0,-10,0,-15,-1,-14,0,0,0,-6,0,0,0,0,0,0,0,0,0,-35,-20,-93,-85,-203,-212,-287,-218,-230,-223,-212,-203,-283,-313,-283,-305,-454,-445,-468,-445,-427,-409,-370,-326,-355,-345,-455,-354,-345,-347,-369,-272,-679,-679,-679,-678,-672,-665,-656,-657,-635,-623]} 1. d4 {[%emt 0:00:00]} Nf6 {[%emt 0:00:02]} 2. Bg5 {[%emt 0:00:01]} d5 {[%emt 0:00:02]} 3. c3 {[%emt 0:00:01]} e6 {[%emt 0:00:05]} 4. Nd2 {[%emt 0:00:02]} c5 {[%emt 0:00:02]} 5. e3 {[%emt 0:00:01]} Qb6 {[%emt 0:00:08]} 6. Rb1 {[%emt 0:00:02] D00: 1 d4 d5: Unusual lines.} Nc6 {[%emt 0:00:05][%cal Rc5d4]} 7. Ngf3 {[%emt 0:00:13]} Be7 {[%emt 0:00:02]} 8. Bd3 {[%emt 0:00:02] White is slightly better.} h6 {[%emt 0:00:02]} 9. Bh4 {[%emt 0:00:01]} cxd4 {[%emt 0:00:31]} 10. exd4 {[%emt 0:00:01]} Nh5 $5 {[%emt 0:00:00][%mdl 4] A promising side line.} 11. Bg3 {[%emt 0:00:09] Prevents Nf4} Nxg3 {[%emt 0:00:04]} 12. hxg3 {[%emt 0:00:00]} Bd7 {[%emt 0:00:04]} 13. Qe2 {[%emt 0:00:02]} Qc7 $146 {[%emt 0:00:11]} ({Predecessor:} 13... a5 14. O-O a4 15. a3 h5 16. Rfe1 Kf8 17. Nf1 Bf6 18. N1h2 Re8 19. Ne5 Nxe5 20. dxe5 {1-0 Barletta,M (2230)-Contin,D (2390) ITA-chT Italy 1995}) 14. a4 {[%emt 0:00:07]} ({Better is} 14. O-O $11) 14... Bd6 {[%emt 0:00:17]} 15. O-O {[%emt 0:00:09]} O-O {[%emt 0:00:04]} 16. Rfe1 {[%emt 0:00:05]} Rae8 {[%emt 0:00:02]} 17. Ne5 {[%emt 0:00:05]} Nxe5 {[%emt 0:00:08]} 18. dxe5 {[%emt 0:00:00]} Bc5 {[%emt 0:00:01]} 19. Bc2 {[%emt 0:00:51]} Rc8 {[%emt 0:00:07]} 20. Qd3 {[%emt 0:00:04]} g6 {[%emt 0:00:02]} 21. Nf3 {[%emt 0:00:07]} Rfd8 {[%emt 0:00:02]} 22. Qd2 {[%emt 0:00:06]} Kg7 {[%emt 0:00:03]} 23. Nh2 {[%emt 0:00:04]} h5 {[%emt 0:00:45][%cal Od5d4]} 24. Nf3 {[%emt 0:00:10]} Be8 {[%emt 0:00:03]} 25. Qf4 {[%emt 0:00:05]} Qe7 {[%emt 0:00:11] Successful Defense Black} 26. Re2 {[%emt 0:01:05]} a5 {[%emt 0:00:04]} 27. Bd3 {[%emt 0:00:16]} Rb8 {[%emt 0:00:27]} 28. b4 {[%emt 0:00:02]} Bb6 {[%emt 0:00:09]} 29. g4 {[%emt 0:00:12]} hxg4 {[%emt 0:00:28]} 30. Qxg4 {[%emt 0:00:00] Black must now prevent Ng5.} Bd7 {[%emt 0:00:10]} 31. bxa5 {[%emt 0:00:19]} Bxa5 {[%emt 0:00:05][%cal Od8h8]} 32. Nh4 {[%emt 0:00:25]} (32. c4 $11 {keeps the balance.}) 32... Rh8 $17 {[%emt 0:00:25] White is on the road to losing.} 33. Nxg6 {[%emt 0:00:16]} fxg6 $40 {[%emt 0:00:01][%mdl 128] Black attacks with force.} 34. Qxg6+ {[%emt 0:00:00]} Kf8 {[%emt 0:00:00][%cal Oe7h4]} 35. Re3 {[%emt 0:00:00] [#] White wants to mate with Rf3+.} Qg7 $1 {[%emt 0:00:05]} 36. Rf3+ {[%emt 0:00:12]} Kg8 {[%emt 0:00:02][%cal Oh8h6]} 37. c4 {[%emt 0:00:26]} Qxg6 {[%emt 0:00:33]} (37... Bxa4 38. Qxe6+) 38. Bxg6 {[%emt 0:00:01]} dxc4 {[%emt 0:00:02]} (38... Bxa4 39. Ra1 Bc6 (39... b5 40. cxb5 Rh4 41. Rfa3 $14) 40. Bf7+ (40. Rxa5 dxc4 41. Rf6 Kg7 $11) 40... Kg7 41. Bxe6 $16 (41. Rxa5 dxc4 42. Bxe6 Bxf3 $17)) 39. Rd1 {[%emt 0:00:15]} (39. Rg3 $142 Kf8 (39... Bxa4 40. Be8+ Kf8 41. Bxa4 $14) 40. Rf3+ Kg7 41. Rg3) 39... Bc6 {[%emt 0:00:04]} (39... Bxa4 40. Bf7+ Kg7 41. Bxe6 $19) 40. Rg3 {[%emt 0:00:41]} Kf8 {[%emt 0:00:02]} ({Less strong is} 40... Bxa4 41. Be8+ Kf8 42. Bxa4 $11) 41. Rd4 {[%emt 0:00:00]} Ke7 {[%emt 0:00:08]} (41... Bxa4 42. Rf3+ Kg8 43. Rg4 $18) 42. Rxc4 {[%emt 0:00:04]} Rbg8 {[%emt 0:00:04]} 43. Rf4 {[%emt 0:00:07]} Rg7 {[%emt 0:00:09]} 44. Rf6 {[%emt 0:00:22]} Rf8 {[%emt 0:00:07]} (44... Bxa4 45. Bf5 Rxg3 46. Rxe6+ Kd8 47. fxg3) 45. Rxf8 {[%emt 0:00:34]} Kxf8 {[%emt 0:00:00]} 46. Kh2 {[%emt 0:00:01]} Ke7 {[%emt 0:00:05][%cal Oa5e1] And now ...Be1! would win.} ({Resist} 46... Bxa4 47. Bd3) 47. f4 $2 {[%emt 0:00:04]} (47. Bc2 Rf7 48. f3) 47... Bd2 {[%emt 0:00:02] Black is clearly winning.} 48. Rg4 {[%emt 0:00:04] [#]} Bxf4+ $1 {[%emt 0:00:01][%mdl 512]} 49. Rxf4 {[%emt 0:00:00]} Rxg6 {[%emt 0:00:01]} 50. g4 {[%emt 0:00:01]} Rg5 {[%emt 0:00:01]} 51. Kg3 {[%emt 0:00:03]} Rxe5 {[%emt 0:00:01] Weighted Error Value: White=0.32/Black=0.10 (very precise)   Mistake:       	White=5     	---        Inaccurate:     	White=4     	Black=1      OK:         	White=17    	Black=14     Best:        	---       	Black=2      Strong:       	---       	Black=1} 0-1

[Event "CCT Chessable Masters Playoffs 2025"]
[Site "Online"]
[Date "2025.02.18"]
[Round "1"]
[White "Duda, Jan-Krzysztof"]
[Black "Nepomniachtchi, Ian"]
[Result "1-0"]
[Annotator "ChessBase"]
[ECO "A13"]
[WhiteElo "2739"]
[BlackElo "2754"]
[PlyCount "117"]
[EventDate "2025.02.13"]
[EventType "k.o."]
[EventCountry "NET"]
[SourceTitle "playchess.com"]
[Source "ChessBase"]
[SourceQuality "1"]
[TimeControl "600"]

1. Nf3 {[%emt 0:00:02]} d5 {[%emt 0:00:05]} 2. c4 {[%emt 0:00:01]} e6 {[%emt 0:00:01]} 3. b3 {[%emt 0:00:01]} Nf6 {[%emt 0:00:02]} 4. Bb2 {[%emt 0:00:01]} Be7 {[%emt 0:00:02]} 5. cxd5 {[%emt 0:00:03]} exd5 {[%emt 0:00:01]} 6. g3 {[%emt 0:00:00]} O-O {[%emt 0:00:03]} 7. Bg2 {[%emt 0:00:01]} Re8 {[%emt 0:00:00]} 8. O-O {[%emt 0:00:01]} Bf8 {[%emt 0:00:01]} 9. Re1 {[%emt 0:00:02]} h6 {[%emt 0:00:03]} 10. h3 {[%emt 0:00:07]} Bf5 {[%emt 0:00:01]} 11. d3 {[%emt 0:00:04]} Nbd7 {[%emt 0:00:04]} 12. Nbd2 {[%emt 0:00:07]} Bh7 {[%emt 0:00:01]} 13. Qc2 {[%emt 0:00:03]} c6 {[%emt 0:00:02]} 14. Rad1 {[%emt 0:00:11]} Qa5 {[%emt 0:00:06]} 15. e4 {[%emt 0:00:24]} Nc5 {[%emt 0:01:47]} 16. Bc3 {[%emt 0:00:28]} Qd8 {[%emt 0:00:26]} 17. b4 {[%emt 0:00:11]} Ne6 {[%emt 0:00:32]} 18. Nb3 {[%emt 0:00:02]} Rc8 {[%emt 0:00:07]} 19. Qb2 {[%emt 0:00:16]} b6 {[%emt 0:00:13]} 20. a3 {[%emt 0:00:27]} Be7 {[%emt 0:00:09]} 21. Ne5 {[%emt 0:01:34]} Qc7 {[%emt 0:00:20]} 22. f4 {[%emt 0:00:11]} Rcd8 {[%emt 0:00:08]} 23. Rc1 {[%emt 0:00:06]} dxe4 {[%emt 0:00:16]} 24. dxe4 {[%emt 0:00:00]} c5 {[%emt 0:00:09]} 25. b5 {[%emt 0:00:13]} Bf8 {[%emt 0:00:13]} 26. Nd2 {[%emt 0:00:12]} Nh5 {[%emt 0:00:03]} 27. Re3 {[%emt 0:00:10]} Nexf4 {[%emt 0:00:05]} 28. gxf4 {[%emt 0:00:01]} Nxf4 {[%emt 0:00:01]} 29. Rf1 {[%emt 0:00:13]} Nxg2 {[%emt 0:00:08]} 30. Kxg2 {[%emt 0:00:00]} Rxd2+ {[%emt 0:00:04]} 31. Qxd2 {[%emt 0:00:00]} Rxe5 {[%emt 0:00:01]} 32. Bxe5 {[%emt 0:00:05]} Qxe5 {[%emt 0:00:00]} 33. Qd5 {[%emt 0:00:01]} Qe7 {[%emt 0:00:01]} 34. e5 {[%emt 0:00:07]} Bg6 {[%emt 0:00:08]} 35. Ref3 {[%emt 0:00:22]} c4 {[%emt 0:01:07]} 36. e6 {[%emt 0:00:17]} f6 {[%emt 0:00:07]} 37. Qxc4 {[%emt 0:00:04]} Kh7 {[%emt 0:00:05]} 38. Qc6 {[%emt 0:00:14]} Be8 {[%emt 0:00:08]} 39. Qe4+ {[%emt 0:00:04]} Bg6 {[%emt 0:00:01]} 40. Qc6 {[%emt 0:00:00]} Be8 {[%emt 0:00:01]} 41. Qd5 {[%emt 0:00:04]} Qc7 {[%emt 0:00:02]} 42. Rg3 {[%emt 0:00:07]} a6 {[%emt 0:00:17]} 43. Qd3+ {[%emt 0:00:37]} Kh8 {[%emt 0:00:04]} 44. bxa6 {[%emt 0:00:03]} Bd6 {[%emt 0:00:07]} 45. a7 {[%emt 0:00:36]} Bc6+ {[%emt 0:00:05]} 46. Rgf3 {[%emt 0:00:01]} Bc5 {[%emt 0:00:04]} 47. Qd7 {[%emt 0:00:31]} Bxd7 {[%emt 0:00:09]} 48. exd7 {[%emt 0:00:09]} Qd8 {[%emt 0:00:03]} 49. Re1 {[%emt 0:00:01]} Kh7 {[%emt 0:00:01]} 50. Re8 {[%emt 0:00:01]} Qxd7 {[%emt 0:00:01]} 51. a8=Q {[%emt 0:00:01]} Qd2+ {[%emt 0:00:01]} 52. Kf1 {[%emt 0:00:00]} Qc1+ {[%emt 0:00:08]} 53. Re1 {[%emt 0:00:03]} Qc4+ {[%emt 0:00:02]} 54. Kg2 {[%emt 0:00:02]} f5 {[%emt 0:00:02]} 55. Qc8 {[%emt 0:00:10]} Qc2+ {[%emt 0:00:03]} 56. Kh1 {[%emt 0:00:01]} Kg6 {[%emt 0:00:01]} 57. Qe6+ {[%emt 0:00:04]} Kg5 {[%emt 0:00:00]} 58. Rg3+ {[%emt 0:00:02]} Kh4 {[%emt 0:00:03]} 59. Rxg7 {[%emt 0:00:02]} 1-0